bitfinex-derivatives/quotes_ETHF0:USTF0_20240817
["timestamp","ask_amount","ask_price","bid_price","bid_amount"]
[1723905176293,1.43887,2605.9,2605.7,2.54394]
[1723905176485,1.43887,2605.9,2605.7,1.105]
[1723905177788,1.43887,2605.9,2605.8,1.105]
[1723905178886,1.43887,2605.9,2605.7,1.105]
[1723905179479,1.43889,2605.8,2605.7,1.105]
[1723905179880,1.43887,2605.9,2605.7,1.105]
[1723905180586,1.43889,2605.8,2605.7,1.105]
[1723905180793,1.43895,2605.7,2605.6,1.83576026]
[1723905181088,1.43895,2605.7,2605.6,1.48646026]
[1723905181281,1.43895,2605.7,2605.6,1.84356026]
[1723905181777,1.43892,2605.8,2605.6,3.28256026]
[1723905181977,1.43886,2605.9,2605.7,1.105]
[1723905182280,0.3723,2606.0,2605.7,1.105]
[1723905182281,1.43889,2605.8,2605.7,1.105]
[1723905182482,1.43887,2605.9,2605.7,2.54392]
[1723905183989,1.43887,2605.9,2605.7,1.105]
[1723905184485,1.43887,2605.9,2605.7,2.54393]
[1723905184689,1.43876,2606.1,2605.8,1.105]
[1723905184898,1.43876,2606.1,2606.0,1.105]
[1723905185191,1.43876,2606.1,2606.0,2.10875647]
[1723905185387,1.43876,2606.1,2606.0,1.105]
[1723905185787,1.43876,2606.1,2606.0,1.4711]
[1723905186881,1.43873,2606.1,2606.0,1.4711]
[1723905187787,1.43873,2606.1,2606.0,2.47485647]
[1723905188283,1.43871,2606.2,2606.0,2.47485647]
[1723905189083,1.43871,2606.2,2606.0,2.90987]
[1723905189387,1.43871,2606.2,2606.1,0.40276148]
[1723905190890,1.43871,2606.2,2606.1,0.06026148]
[1723905191092,6.38051,2606.2,2606.1,0.06026148]
[1723905191390,12.81921,2606.2,2606.1,0.06026148]
[1723905193184,1.4387,2606.2,2606.1,1.16526148]
[1723905193890,1.4387,2606.2,2606.1,1.86946148]
[1723905194193,0.3474,2606.3,2606.1,3.30816148]
[1723905194393,0.3474,2606.3,2606.2,1.105]
[1723905194596,0.3474,2606.3,2606.2,1.16526148]
[1723905195897,2.5481647,2606.5,2606.2,1.16526148]
[1723905196196,1.4431647,2606.5,2606.3,1.105]
[1723905196584,1.4431647,2606.5,2606.4,0.06026148]
[1723905196791,2.5481647,2606.5,2606.4,0.06026148]
[1723905201101,1.4431647,2606.5,2606.4,0.06026148]
[1723905207502,2.5481647,2606.5,2606.4,0.06026148]
[1723905209901,1.4431647,2606.5,2606.4,0.06026148]
[1723905210701,7.3208,2607.0,2606.6,1.43843]
[1723905210911,1.79931,2606.9,2606.7,2.16839]
[1723905211110,1.79931,2606.9,2606.7,0.73]
[1723905211712,1.80199841,2606.9,2606.8,1.16526148]
[1723905212008,1.80199841,2606.9,2606.8,0.06352239]
[1723905212213,0.00268841,2606.9,2606.8,0.06352239]
[1723905212702,0.00268841,2606.9,2606.8,1.50186239]
[1723905212900,0.00268841,2606.9,2606.8,0.06352239]
[1723905218608,1.44096841,2606.9,2606.8,0.06352239]
[1723905224319,0.00268841,2606.9,2606.8,0.06352239]
[1723905225815,1.44096841,2606.9,2606.8,0.06352239]
[1723905228221,0.00268841,2606.9,2606.8,0.06352239]
[1723905229526,1.44096841,2606.9,2606.8,0.06352239]
[1723905229737,0.00268841,2606.9,2606.8,1.50186239]
[1723905230020,0.00268841,2606.9,2606.8,1.84756239]
[1723905230623,1.44096841,2606.9,2606.8,0.06352239]
[1723905231325,0.00268841,2606.9,2606.8,0.06352239]
[1723905231917,0.00268841,2606.9,2606.8,2.60686239]
[1723905232522,0.00268841,2606.9,2606.8,2.97046239]
[1723905233128,0.00268841,2606.9,2606.8,6.80646239]
[1723905233332,0.00014406,2606.9,2606.8,9.7280238]
[1723905233522,0.00014406,2606.9,2606.8,7.81021886]
[1723905233921,0.00014406,2606.9,2606.8,6.70521886]
[1723905235826,0.00014406,2606.9,2606.8,1.50186239]
[1723905236228,0.74584406,2606.9,2606.8,1.50186239]
[1723905237832,2.18412406,2606.9,2606.8,0.06352239]
[1723905238024,2.52802406,2606.9,2606.8,0.06352239]
[1723905239133,6.36402406,2606.9,2606.8,0.06352239]
[1723905239935,7.80230406,2606.9,2606.8,0.06352239]
[1723905243134,6.36402406,2606.9,2606.8,0.06352239]
[1723905244637,6.36402406,2606.9,2606.8,0.42482239]
[1723905245237,0.74584406,2606.9,2606.8,1.86316239]
[1723905245541,1.81642406,2606.9,2606.8,0.42482239]
[1723905245745,0.37814406,2606.9,2606.8,1.86316239]
[1723905248651,1.81642406,2606.9,2606.8,0.42482239]
[1723905248944,0.37814406,2606.9,2606.8,1.86316239]
[1723905249145,0.00014406,2606.9,2606.8,2.86691886]
[1723905249349,0.00014406,2606.9,2606.8,5.39045583]
[1723905249648,0.00014406,2606.9,2606.8,5.39044145]
[1723905249836,0.00014406,2606.9,2606.8,4.38755355]
[1723905250346,0.00014406,2606.9,2606.8,4.38755796]
[1723905250540,0.00014406,2606.9,2606.8,5.89171784]
[1723905251342,0.00014406,2606.9,2606.8,5.39038785]
[1723905251736,0.00014406,2606.9,2606.8,4.38755796]
[1723905252146,0.00014406,2606.9,2606.8,9.72769114]
[1723905252746,0.00014406,2606.9,2606.8,17.93549114]
[1723905252945,0.00014406,2606.9,2606.8,22.27634022]
[1723905253140,0.00014406,2606.9,2606.8,20.26698142]
[1723905253643,0.00014406,2606.9,2606.8,19.66056317]
[1723905253847,0.00014406,2606.9,2606.8,22.77454819]
[1723905254051,0.00014406,2606.9,2606.8,23.87954819]
[1723905254253,0.00014406,2606.9,2606.8,16.37183168]
[1723905254551,0.00014406,2606.9,2606.8,18.37886248]
[1723905254750,0.00014406,2606.9,2606.8,16.37183168]
[1723905255248,0.00014406,2606.9,2606.8,18.87954819]
[1723905255450,0.00014406,2606.9,2606.8,16.37183168]
[1723905255842,0.00014406,2606.9,2606.8,15.26683168]
[1723905256038,0.00014406,2606.9,2606.8,17.77454819]
[1723905256438,0.00014406,2606.9,2606.8,15.26683168]
[1723905256843,0.00014406,2606.9,2606.8,15.26662664]
[1723905257651,0.00014406,2606.9,2606.8,15.26678643]
[1723905259741,0.00014406,2606.9,2606.8,17.77450294]
[1723905260443,0.00014406,2606.9,2606.8,15.26678643]
[1723905261047,0.00014406,2606.9,2606.8,17.27320211]
[1723905261547,0.00014406,2606.9,2606.8,17.27324874]
[1723905262250,0.00014406,2606.9,2606.8,17.27338585]
[1723905262844,0.00014406,2606.9,2606.8,11.6381176]
[1723905263147,5.27442406,2606.9,2606.8,0.06352239]
[1723905264058,5.63302406,2606.9,2606.8,0.06352239]
[1723905265950,0.00014406,2606.9,2606.8,2.10880402]
[1723905266260,0.00014406,2606.9,2606.8,5.5320566]
[1723905267360,0.00014406,2606.9,2606.8,6.2522566]
[1723905269753,0.00014406,2606.9,2606.8,4.74692831]
[1723905269953,0.00014406,2606.9,2606.8,4.13998668]
[1723905270161,0.00014406,2606.9,2606.8,4.74684175]
[1723905270555,0.00014406,2606.9,2606.8,2.82891746]
[1723905270751,0.00014406,2606.9,2606.8,7.95458185]
[1723905270959,0.00014406,2606.9,2606.8,6.25280943]
[1723905272064,0.00014406,2606.9,2606.8,1.78797386]
[1723905272666,0.35894406,2606.9,2606.8,1.78797386]
[1723905273261,0.35894406,2606.9,2606.8,2.98584584]
[1723905273469,0.71474406,2606.9,2606.8,1.06777386]
[1723905273662,2.15302406,2606.9,2606.8,1.06777386]
[1723905274661,2.15302406,2606.9,2606.8,2.98585651]
[1723905274963,2.15302406,2606.9,2606.8,1.06777386]
[1723905279070,1.43825,2607.0,2606.8,1.06777386]
[1723905279268,1.43825,2607.0,2606.8,2.50611386]
[1723905279463,1.43825,2607.0,2606.8,1.06777386]
[1723905279664,1.43825,2607.0,2606.9,1.06451295]
[1723905279863,1.43825,2607.0,2606.9,1.16526148]
[1723905280166,1.44118264,2607.0,2606.9,1.16526148]
[1723905280571,1.44118264,2607.0,2606.9,2.16951295]
[1723905281566,1.44118264,2607.0,2606.9,1.16526148]
[1723905282468,1.44118264,2607.0,2606.9,0.06026148]
[1723905283077,1.44118264,2607.0,2606.9,1.06451295]
[1723905283374,0.00293264,2607.0,2606.9,6.38575633]
[1723905283668,0.00293264,2607.0,2606.9,7.8640898]
[1723905283875,0.00293264,2607.0,2606.9,11.7000898]
[1723905284270,0.00293264,2607.0,2606.9,15.53564123]
[1723905284469,0.00293264,2607.0,2606.9,11.7000898]
[1723905284665,0.00293264,2607.0,2606.9,11.69987714]
[1723905285267,0.00293264,2607.0,2606.9,14.92858058]
[1723905285467,0.00293264,2607.0,2606.9,11.69970787]
[1723905285774,4.113,2607.9,2607.4,1.43798]
[1723905286068,2.53283,2607.8,2607.6,1.105]
[1723905286276,1.095,2607.8,2607.6,1.105]
[1723905286476,1.095,2607.8,2607.6,2.10841984]
[1723905286663,1.095,2607.8,2607.7,0.06026148]
[1723905286664,1.09833939,2607.8,2607.7,0.06026148]
[1723905287274,4.113,2608.2,2607.7,3.89466148]
[1723905287473,4.113,2608.2,2608.1,1.105]
[1723905287676,1.43751,2608.3,2608.1,1.16526148]
[1723905287979,1.43751,2608.3,2608.1,0.06026148]
[1723905288478,1.4422187,2608.3,2608.1,0.06026148]
[1723905288673,1.4422187,2608.3,2608.0,0.3507]
[1723905288977,1.4422187,2608.3,2608.2,0.06026148]
[1723905289370,5.2758187,2608.3,2608.2,0.06026148]
[1723905289669,1.4422187,2608.3,2608.2,0.06026148]
[1723905289868,0.0047087,2608.3,2608.2,0.06026148]
[1723905292975,5.2758187,2608.3,2608.2,0.06026148]
[1723905293872,8.4836187,2608.3,2608.2,0.06026148]
[1723905295270,6.0875287,2608.3,2608.2,0.06026148]
[1723905295475,6.7133287,2608.3,2608.2,0.06026148]
[1723905295679,5.2758187,2608.3,2608.2,0.06026148]
[1723905298474,1.4422187,2608.3,2608.2,0.06026148]
[1723905302074,0.0047087,2608.3,2608.2,5.33143148]
[1723905302274,0.0047087,2608.3,2608.2,3.89386148]
[1723905302473,0.0047087,2608.3,2608.2,5.33143148]
[1723905303085,0.0047087,2608.3,2608.2,3.89386148]
[1723905303280,1.4422187,2608.3,2608.2,0.06026148]
[1723905303473,1.8047187,2608.3,2608.2,0.06026148]
[1723905304084,7.0758287,2608.3,2608.2,0.06026148]
[1723905304491,10.2836287,2608.3,2608.2,0.06026148]
[1723905305188,16.7211387,2608.3,2608.2,0.03245017]
[1723905306386,15.2836287,2608.3,2608.2,0.03245017]
[1723905306885,1.43784,2607.7,2607.6,0.3558]
[1723905308087,1.4379,2607.6,2607.5,0.3551]
[1723905308890,1.43795,2607.5,2607.4,0.00576026]
[1723905310186,1.80395,2607.5,2607.4,0.00576026]
[1723905310488,3.2419,2607.5,2607.4,0.00576026]
[1723905310688,7.0771,2607.5,2607.4,0.00576026]
[1723905311085,3.2419,2607.5,2607.4,0.00576026]
[1723905314482,2.8759,2607.5,2607.4,0.00576026]
[1723905317093,6.7111,2607.5,2607.4,0.00576026]
[1723905317397,2.8759,2607.5,2607.4,0.00576026]
[1723905318993,22.6351,2607.5,2607.4,0.00576026]
[1723905319185,17.6351,2607.5,2607.4,0.00576026]
[1723905319586,22.6351,2607.5,2607.4,0.00576026]
[1723905319795,17.6351,2607.5,2607.4,0.00576026]
[1723905320298,16.19715,2607.5,2607.4,0.00576026]
[1723905323083,17.6351,2607.5,2607.4,0.00576026]
[1723905323888,20.8429,2607.5,2607.4,0.00576026]
[1723905324096,19.40495,2607.5,2607.4,0.00576026]
[1723905324701,8.48095,2607.5,2607.4,0.00576026]
[1723905327197,9.9189,2607.5,2607.4,0.00576026]
[1723905329507,8.48095,2607.5,2607.4,0.00576026]
[1723905329701,4.64575,2607.5,2607.4,0.00576026]
[1723905331105,4.64575,2607.5,2607.4,0.34916026]
[1723905331900,5.75075,2607.5,2607.4,0.34916026]
[1723905333207,5.75075,2607.5,2607.4,0.00576026]
[1723905333401,11.0239,2607.5,2607.4,0.00576026]
[1723905334803,9.58595,2607.5,2607.4,0.00576026]
[1723905335005,11.0239,2607.5,2607.4,0.00576026]
[1723905335207,9.58595,2607.5,2607.4,0.00576026]
[1723905336808,11.0239,2607.5,2607.4,0.00576026]
[1723905337507,9.58595,2607.5,2607.4,0.00576026]
[1723905338106,5.75075,2607.5,2607.4,0.00576026]
[1723905338406,5.75075,2607.5,2607.4,0.37946026]
[1723905342312,7.1887,2607.5,2607.4,0.37946026]
[1723905342511,5.75075,2607.5,2607.4,0.37946026]
[1723905343108,12.46185,2607.5,2607.4,0.00576026]
[1723905343308,23.38585,2607.5,2607.4,2.6e-07]
[1723905343513,21.9479,2607.5,2607.4,2.6e-07]
[1723905343712,23.38585,2607.5,2607.4,2.6e-07]
[1723905345215,21.9479,2607.5,2607.4,2.6e-07]
[1723905345420,20.8429,2607.5,2607.4,2.6e-07]
[1723905345716,0.00576,2607.7,2607.6,1.4379]
[1723905345916,0.00576,2607.7,2607.6,1.105]
[1723905346112,0.00576,2607.7,2607.6,4.9402]
[1723905347519,1.4436,2607.7,2607.6,3.8352]
[1723905347813,1.11076,2607.7,2607.5,1.1033]
[1723905348018,1.4379,2607.6,2607.5,0.3654]
[1723905351017,0.00576,2607.7,2607.5,0.3654]
[1723905351417,0.00576,2607.7,2607.6,0.3605]
[1723905352411,0.00576,2607.7,2607.6,10.6336]
[1723905352714,0.00576,2607.7,2607.6,14.15750125]
[1723905352920,0.00576,2607.7,2607.6,14.66143111]
[1723905353125,1.4422487,2608.3,2607.6,13.22353111]
[1723905353315,0.0047087,2608.3,2608.1,3.2078]
[1723905353517,0.0047087,2608.3,2608.2,1.081]
[1723905355514,4.113,2608.8,2608.2,9.9146]
[1723905355716,1.43733,2608.7,2608.3,3.2078]
[1723905356517,1.44132389,2608.7,2608.3,3.2078]
[1723905357224,1.43735,2608.6,2608.3,3.2078]
[1723905358312,1.44132389,2608.7,2608.3,3.2078]
[1723905358923,0.00399389,2608.7,2608.4,1.43745]
[1723905360012,0.00399389,2608.7,2608.3,4.64528]
[1723905360211,1.44129389,2608.7,2608.3,4.64528]
[1723905360419,1.44129389,2608.7,2608.3,3.2078]
[1723905360726,0.00399389,2608.7,2608.3,3.2078]
[1723905361329,1.43743,2608.5,2608.3,3.2078]
[1723905362215,1.43746,2608.4,2608.3,3.2078]
[1723905362408,2.87492,2608.4,2608.3,3.2078]
[1723905362619,1.43763,2608.1,2607.9,0.3659]
[1723905362816,1.4376,2608.2,2607.9,0.7207]
[1723905363006,1.43755,2608.3,2608.0,3.2078]
[1723905363207,1.43758,2608.2,2608.0,3.2078]
[1723905363605,1.43735,2608.6,2608.0,7.0422]
[1723905363932,1.43735,2608.6,2608.0,4.64544]
[1723905363933,1.43749,2608.4,2608.0,4.64544]
[1723905364219,1.43749,2608.4,2608.0,3.2078]
[1723905364409,1.43749,2608.4,2608.0,4.64544]
[1723905364616,1.43752,2608.3,2608.0,3.2078]
[1723905365213,1.43752,2608.3,2608.0,4.64547]
[1723905366018,1.43752,2608.3,2608.0,3.2078]
[1723905366217,1.43752,2608.3,2608.0,4.64547]
[1723905367125,1.43749,2608.4,2608.1,1.43762]
[1723905367424,1.43752,2608.3,2608.0,4.64546]
[1723905367614,1.43749,2608.4,2608.1,1.43762]
[1723905368019,1.43742,2608.5,2608.2,1.43756]
[1723905368223,1.43742,2608.5,2608.3,0.3459]
[1723905368420,1.43742,2608.5,2608.4,0.3746]
[1723905369425,5.55431389,2608.7,2608.4,4.2082]
[1723905369619,1.43739,2608.6,2608.4,0.3746]
[1723905369820,1.43738,2608.6,2608.4,0.3746]
[1723905370710,1.4374,2608.5,2608.4,0.3746]
[1723905373621,1.43746,2608.4,2608.3,0.3478]
[1723905375221,1.43762,2608.1,2608.0,3.2078]
[1723905375421,1.43773,2607.9,2607.8,0.3605]
[1723905377537,1.43773,2607.9,2607.8,4.1949]
[1723905378231,1.43771,2608.0,2607.8,4.1949]
[1723905378428,1.43773,2607.9,2607.8,0.3605]
[1723905378941,1.43773,2607.9,2607.8,4.1949]
[1723905382333,1.43773,2607.9,2607.8,0.3605]
[1723905383538,1.80483,2607.9,2607.8,0.3605]
[1723905383738,1.43779,2607.8,2607.7,0.371]
[1723905383943,1.43784,2607.7,2607.6,3.5616]
[1723905385230,1.43784,2607.7,2607.6,3.2078]
[1723905386737,1.43784,2607.7,2607.5,0.3507]
[1723905386943,1.80483,2607.9,2607.5,0.3507]
[1723905387337,1.43788,2607.7,2607.5,0.3507]
[1723905387541,1.4379,2607.6,2607.5,0.3507]
[1723905387740,1.43787,2607.7,2607.5,0.3507]
[1723905388241,1.43787,2607.7,2607.5,4.1859]
[1723905388439,1.4379,2607.6,2607.5,4.1859]
[1723905388637,1.4379,2607.6,2607.5,0.3507]
[1723905388938,1.4379,2607.6,2607.5,4.1859]
[1723905393542,1.4379,2607.6,2607.5,0.3507]
[1723905395836,1.4379,2607.6,2607.5,1.4557]
[1723905398535,1.43788,2607.7,2607.5,2.89365]
[1723905398741,1.43788,2607.7,2607.6,0.7343]
[1723905400555,1.43784,2607.7,2607.6,0.7343]
[1723905400844,1.43781,2607.8,2607.6,2.1722]
[1723905401241,1.43781,2607.8,2607.6,0.7343]
[1723905401449,1.43781,2607.8,2607.6,2.17219]
[1723905404351,1.43781,2607.8,2607.7,1.105]
[1723905405943,1.43777,2607.9,2607.7,1.105]
[1723905406146,5.55061,2608.2,2607.8,1.105]
[1723905406457,5.55061,2608.2,2608.1,2.54262]
[1723905406458,4.113,2608.2,2608.1,2.54262]
[1723905406949,4.113,2608.2,2608.1,7.47212]
[1723905407846,1.43742,2608.5,2608.2,1.43753]
[1723905408047,1.43742,2608.5,2608.3,1.4375]
[1723905408253,1.43742,2608.5,2608.2,2.54253]
[1723905409351,1.43741,2608.5,2608.3,1.4375]
[1723905409556,4.11699389,2608.7,2608.4,1.105]
[1723905409751,1.43735,2608.6,2608.5,0.37]
[1723905410750,1.80775,2608.6,2608.5,0.37]
[1723905410947,0.3704,2608.6,2608.3,3.2078]
[1723905411156,1.43744,2608.5,2608.3,3.2078]
[1723905411451,2.54244,2608.5,2608.4,0.37]
[1723905412056,6.37604,2608.5,2608.4,0.37]
[1723905413762,1.43746,2608.4,2608.3,3.2078]
[1723905415849,1.43751,2608.3,2608.0,1.00086419]
[1723905416055,1.43768,2608.0,2607.9,2.10586419]
[1723905416250,1.43768,2608.0,2607.9,1.105]
[1723905418161,1.43784,2607.7,2607.6,4.3128]
[1723905418349,1.43781,2607.8,2607.6,4.6796]
[1723905418555,1.43776,2607.9,2607.8,1.105]
[1723905419160,1.43773,2607.9,2607.8,1.105]
[1723905419357,1.43771,2608.0,2607.8,1.105]
[1723905420062,1.43773,2607.9,2607.8,1.105]
[1723905420268,1.105,2608.1,2607.8,1.105]
[1723905420269,1.43771,2608.0,2607.8,1.105]
[1723905420467,1.43764,2608.1,2607.9,4.3128]
[1723905420663,1.43764,2608.1,2607.9,4.686]
[1723905420967,5.55059,2608.2,2608.0,0.3581]
[1723905422476,1.43762,2608.1,2608.0,0.3581]
[1723905423468,1.43761,2608.2,2608.0,0.3581]
[1723905424073,1.43762,2608.2,2608.0,0.3581]
[1723905426464,1.43762,2608.1,2608.0,0.3581]
[1723905428468,2.54262,2608.1,2608.0,0.3581]
[1723905429168,1.105,2608.1,2608.0,0.3581]
[1723905429370,1.4376,2608.2,2608.0,0.3581]
[1723905429567,1.43762,2608.1,2608.0,0.3581]
[1723905429763,1.4376,2608.2,2608.0,0.3581]
[1723905430168,1.43762,2608.1,2608.0,0.3581]
[1723905431265,1.105,2608.1,2607.8,1.483]
[1723905431474,1.4377,2608.0,2607.9,0.3698]
[1723905434372,0.3516,2608.4,2607.9,5.3092]
[1723905434575,1.43754,2608.3,2608.1,1.105]
[1723905434769,2.54254,2608.3,2608.2,0.3645]
[1723905435775,1.105,2608.3,2608.2,0.7089]
[1723905436074,1.43751,2608.3,2608.2,0.7089]
[1723905436370,1.43751,2608.3,2608.2,0.3645]
[1723905436371,2.54251,2608.3,2608.2,0.3645]
[1723905441677,1.43749,2608.4,2608.2,0.3645]
[1723905442073,1.43751,2608.3,2608.2,0.3645]
[1723905443878,1.43748,2608.4,2608.2,5.3031]
[1723905444176,1.43748,2608.4,2608.2,1.4695]
[1723905444579,1.43743,2608.5,2608.3,1.105]
[1723905444771,1.43743,2608.5,2608.4,0.3784]
[1723905445278,1.10899389,2608.7,2608.4,0.3784]
[1723905445583,1.43736,2608.6,2608.5,0.7207]
[1723905446283,2.54236,2608.6,2608.5,0.7207]
[1723905446489,6.37596,2608.6,2608.1,1.00086419]
[1723905446669,1.43746,2608.4,2608.1,1.79212]
[1723905446874,1.43746,2608.4,2608.2,0.3477]
[1723905447174,1.43736,2608.6,2608.2,0.3477]
[1723905447175,1.105,2608.6,2608.2,1.4527]
[1723905447373,1.43741,2608.5,2608.3,1.43748]
[1723905447575,1.105,2608.6,2608.4,0.3574]
[1723905447769,1.105,2608.6,2608.5,0.3441]
[1723905448076,1.105,2608.6,2608.5,0.6918]
[1723905448271,0.00399389,2608.7,2608.5,18.7687747]
[1723905448470,5.9473,2609.4,2609.1,2.54207]
[1723905448673,0.7293,2609.4,2609.2,1.105]
[1723905448875,1.43683,2609.6,2609.2,1.105]
[1723905449081,2.54177,2609.7,2609.3,2.1731]
[1723905449282,4.113,2609.8,2609.3,1.0681]
[1723905449283,1.105,2609.5,2609.3,1.0681]
[1723905449472,1.105,2609.5,2609.3,1.07200806]
[1723905451474,1.43681,2609.6,2609.3,2.17700806]
[1723905451669,1.105,2609.5,2609.3,1.07200806]
[1723905451882,1.105,2609.5,2609.3,0.71460806]
[1723905452876,2.54191,2609.4,2609.3,0.00390806]
[1723905453189,1.43691,2609.4,2609.3,0.00390806]
[1723905453480,1.105,2609.6,2609.3,1.10890806]
[1723905453675,2.54182,2609.6,2609.4,0.7529]
[1723905453872,2.54182,2609.6,2609.4,1.0958]
[1723905454278,1.105,2609.6,2609.4,1.0958]
[1723905454483,0.00389321,2609.7,2609.5,1.105]
[1723905458384,6.37763321,2609.7,2609.4,3.2078]
[1723905458586,1.10889321,2609.7,2609.4,3.2078]
[1723905458774,1.10889321,2609.7,2609.3,2.54585806]
[1723905460185,2.54564321,2609.7,2609.3,1.10890806]
[1723905460578,2.54564321,2609.7,2609.3,2.54585806]
[1723905462484,1.4368,2609.6,2609.3,1.10890806]
[1723905462693,0.725,2609.5,2609.3,1.10890806]
[1723905463486,1.10889321,2609.7,2609.3,2.54585806]
[1723905463487,2.54566321,2609.7,2609.3,2.54585806]
[1723905465394,1.4368,2609.6,2609.4,3.2078]
[1723905465691,2.54567321,2609.7,2609.4,3.2078]
[1723905465987,0.00389321,2609.7,2609.6,2.5418]
[1723905467583,0.00389321,2609.7,2609.6,6.3738]
[1723905468493,0.00389321,2609.7,2609.6,2.5418]
[1723905469185,0.00389321,2609.7,2609.6,1.105]
[1723905469500,0.00389321,2609.7,2609.6,2.5418]
[1723905471788,0.00389321,2609.7,2609.6,6.3738]
[1723905472301,0.00389321,2609.7,2609.6,2.5418]
[1723905476084,4.64402,2610.7,2609.6,9.937]
[1723905476291,1.4364,2610.4,2610.1,2.54149]
[1723905476506,1.4364,2610.4,2610.2,0.3417]
[1723905476695,3.62753,2610.5,2610.2,5.72557]
[1723905476887,3.25713,2610.5,2610.2,2.51777]
[1723905477096,3.26024149,2610.5,2610.3,1.105]
[1723905477496,3.26024149,2610.5,2610.2,5.72557]
[1723905478096,3.26024149,2610.5,2610.2,4.2891]
[1723905479202,3.26024149,2610.5,2610.2,5.72556]
[1723905479601,3.26024149,2610.5,2610.2,6.83056]
[1723905480192,3.26024149,2610.5,2610.2,5.3941]
[1723905480494,1.43636,2610.4,2610.2,1.0813]
[1723905481291,1.43641,2610.3,2610.2,0.3417]
[1723905481505,1.43658,2610.0,2609.9,3.2078]
[1723905481801,2.54158,2610.0,2609.9,3.2078]
[1723905482394,1.43674,2609.7,2609.3,3.21170806]
[1723905482595,1.43683,2609.6,2609.4,1.8466]
[1723905482794,2.1741,2609.9,2609.5,1.105]
[1723905483002,1.43671,2609.8,2609.7,1.105]
[1723905483302,1.43666,2609.9,2609.7,1.105]
[1723905483508,1.43669,2609.8,2609.7,1.105]
[1723905483690,1.43674,2609.7,2609.6,3.2078]
[1723905484098,1.43673,2609.8,2609.6,3.2078]
[1723905485407,1.43673,2609.8,2609.5,1.43683]
[1723905485810,1.43675,2609.7,2609.5,1.43683]
[1723905486105,1.43675,2609.7,2609.4,2.17847]
[1723905486697,1.43675,2609.7,2609.5,1.43685]
[1723905487807,1.43675,2609.7,2609.4,2.17847]
[1723905488909,1.43685,2609.6,2609.4,0.7416]
[1723905489108,1.43685,2609.5,2609.4,0.7416]
[1723905489306,1.43685,2609.5,2609.4,0.3671]
[1723905489506,1.43691,2609.4,2609.3,3.21170806]
[1723905489699,1.43691,2609.4,2609.3,3.55610806]
[1723905489898,2.51038,2609.7,2609.3,3.55610806]
[1723905490209,1.43689,2609.5,2609.3,3.55610806]
[1723905490399,4.113,2610.0,2609.3,3.55610806]
[1723905490604,1.43676,2609.7,2609.4,1.43686]
[1723905490805,1.43676,2609.7,2609.5,0.7169]
[1723905491009,1.4368,2609.6,2609.5,0.7169]
[1723905491202,1.43677,2609.7,2609.5,0.7169]
[1723905491711,1.4368,2609.6,2609.5,0.7169]
[1723905492110,1.43678,2609.7,2609.5,0.7169]
[1723905492296,5.1866,2610.0,2609.5,2.15374]
[1723905492501,1.43677,2609.7,2609.5,0.7169]
[1723905492902,1.43678,2609.7,2609.5,0.7169]
[1723905493106,1.4368,2609.6,2609.5,0.7169]
[1723905493302,1.43676,2609.7,2609.5,0.7169]
[1723905493601,1.43678,2609.7,2609.5,0.7169]
[1723905493800,1.4368,2609.6,2609.5,0.7169]
[1723905494408,1.4368,2609.6,2609.5,0.3743]
[1723905494898,3.832,2609.6,2609.3,3.55610806]
[1723905495104,1.43674,2609.8,2609.3,3.55610806]
[1723905495105,1.43691,2609.4,2609.3,3.55610806]
[1723905500213,1.43691,2609.4,2609.3,0.34830806]
[1723905501013,6.70582,2609.4,2609.3,0.00390806]
[1723905501512,11.70582,2609.4,2609.3,0.00390806]
[1723905502304,6.70582,2609.4,2609.3,0.00390806]
[1723905502505,10.26891,2609.4,2609.3,0.00390806]
[1723905502701,5.26891,2609.4,2609.3,0.00390806]
[1723905503202,6.70582,2609.4,2609.3,0.00390806]
[1723905503404,11.70582,2609.4,2609.3,0.00390806]
[1723905504012,12.80982,2609.4,2609.3,0.00390806]
[1723905504216,7.80982,2609.4,2609.3,0.00390806]
[1723905504411,12.80982,2609.4,2609.3,0.00390806]
[1723905504619,7.80982,2609.4,2609.3,0.00390806]
[1723905509614,5.26891,2609.4,2609.3,0.00390806]
[1723905509912,1.43691,2609.4,2609.3,0.00390806]
[1723905510310,1.43691,2609.4,2609.3,0.34920806]
[1723905511611,8.7574,2610.0,2609.3,8.49300806]
[1723905511816,1.43669,2609.8,2609.7,1.104]
[1723905513318,1.43669,2609.8,2609.7,1.4708]
[1723905513619,4.113,2610.0,2609.7,1.4708]
[1723905513815,5.54962,2610.0,2609.8,1.4684]
[1723905514007,5.54961,2610.0,2609.8,1.4684]
[1723905514210,1.43663,2609.9,2609.8,1.4684]
[1723905515722,1.43659,2610.0,2609.8,1.4684]
[1723905515922,1.43663,2609.9,2609.8,1.4684]
[1723905516913,1.43661,2610.0,2609.8,1.4684]
[1723905517213,1.104,2610.2,2609.9,1.104]
[1723905517416,1.43643,2610.3,2610.0,1.104]
[1723905517620,1.43643,2610.3,2610.2,1.104]
[1723905517926,1.43641,2610.3,2610.2,1.104]
[1723905518622,1.43944149,2610.5,2610.2,4.3118]
[1723905518924,1.43944149,2610.5,2610.3,0.3646]
[1723905519130,1.43636,2610.4,2610.3,0.3646]
[1723905519428,1.43945149,2610.5,2610.3,0.3646]
[1723905520221,1.43636,2610.4,2610.3,0.3646]
[1723905520723,2.54344149,2610.5,2610.3,0.3646]
[1723905521128,1.43636,2610.4,2610.3,0.3646]
[1723905521711,1.43641,2610.3,2610.2,4.3118]
[1723905521913,1.43641,2610.3,2610.2,3.2078]
[1723905522321,2.54041,2610.3,2610.2,3.2078]
[1723905522530,6.75021,2610.3,2610.2,3.2078]
[1723905523011,8.18662,2610.3,2610.2,3.2078]
[1723905523917,5.64621,2610.3,2610.2,3.2078]
[1723905524316,5.26761,2610.3,2610.2,3.2078]
[1723905524521,1.43641,2610.3,2610.2,3.2078]
[1723905525421,5.26761,2610.3,2610.2,3.2078]